fUSD/lending_fUSD_20240502
["ID","MTS","AMOUNT","RATE_DAILY","PERIOD"]
[325303254,1714686671213,-1224.67,0.00030684,2]
[325303255,1714686671223,-500.0,0.00030684,2]
[325303256,1714686671233,-2250.25,0.00030684,2]
[325303257,1714686671243,-2072.64,0.00030684,2]
[325303258,1714686671253,-10784.94,0.00030684,2]
[325303259,1714686671264,-500.0,0.00030684,2]
[325303260,1714686671274,-638.69,0.00030684,2]
[325303261,1714686671286,-4836.91,0.00030684,2]
[325303262,1714686671295,-1308.43,0.00030684,2]
[325303263,1714686671305,-9541.71,0.00030684,2]
[325303264,1714686671315,-1604.49,0.00030684,2]
[325303265,1714686671325,-500.0,0.00030684,2]
[325303266,1714686671335,-1765.11,0.00030684,2]
[325303267,1714686671346,-500.0,0.00030684,2]
[325303268,1714686671356,-500.0,0.00030684,2]
[325303269,1714686671365,-500.0,0.00030684,2]
[325303270,1714686671375,-7454.18,0.00030684,2]
[325303271,1714686671385,-500.0,0.00030684,2]
[325303272,1714686671395,-1003.98,0.00030684,2]
[325303273,1714686671405,-10383.43,0.00030684,2]
[325303274,1714686671415,-562.17,0.00030684,2]
[325303275,1714686671425,-9568.3,0.00030684,2]
[325303276,1714686671434,-6249.14,0.00030684,2]
[325303277,1714686671444,-500.0,0.00030684,2]
[325303278,1714686671454,-748.97,0.00030684,2]
[325303279,1714686671463,-6280.71,0.00030684,2]
[325303280,1714686671474,-500.0,0.00030684,2]
[325303281,1714686671484,-500.0,0.00030684,2]
[325303282,1714686671494,-500.0,0.00030684,2]
[325303283,1714686671503,-374.62920109,0.00030684,2]
[325303284,1714686671515,-3507.51,0.00030684,2]
[325303285,1714686671524,-500.0,0.00030684,2]
[325303286,1714686671534,-500.0,0.00030684,2]
[325303287,1714686671544,-500.0,0.00030684,2]
[325303288,1714686671554,-500.0,0.00030684,2]
[325303289,1714686671563,-1933.65,0.00030684,2]
[325303290,1714686671573,-1874.1,0.00030684,2]
[325303291,1714686671583,-4427.9,0.00030684,2]
[325303292,1714686671593,-41218.55,0.00030684,2]
[325303293,1714686671603,-1985.25,0.00030684,2]
[325303294,1714686671613,-500.0,0.00030684,2]
[325303295,1714686671622,-6773.92,0.00030684,2]
[325303296,1714686671632,-3415.75,0.00030684,2]
[325303297,1714686671641,-2684.73,0.00030684,2]
[325303298,1714686671651,-1267.12,0.00030684,2]
[325303299,1714686671660,-1505.97,0.00030684,2]
[325303300,1714686671670,-500.0,0.00030684,2]
[325303301,1714686671682,-561.69,0.00030684,2]
[325303302,1714686671692,-11863.31,0.00030684,2]
[325303303,1714686671701,-500.0,0.00030684,2]
[325303304,1714686671711,-6929.85,0.00030684,2]
[325303305,1714686671721,-1149.85,0.00030684,2]
[325303306,1714686671731,-2682.45,0.00030684,2]
[325303307,1714686671741,-388.77,0.00030684,2]
[325303308,1714686671751,-500.0,0.00030684,2]
[325303309,1714686671761,-881.56,0.00030684,2]
[325303310,1714686671771,-13656.32,0.00030684,2]
[325303311,1714686671784,-526.81,0.00030684,2]
[325303312,1714686671794,-500.0,0.00030684,2]
[325303313,1714686671803,-1625.32,0.00030684,2]
[325303314,1714686671815,-500.0,0.00030684,2]
[325303315,1714686671826,-1385.99,0.00030684,2]
[325303316,1714686671835,-1313.93,0.00030684,2]
[325303317,1714686671845,-2288.77,0.00030684,2]
[325303318,1714686671855,-500.0,0.00030684,2]
[325303319,1714686671865,-3339.52,0.00030684,2]
[325303320,1714686671875,-1431.25,0.00030684,2]
[325303321,1714686671885,-11261.58,0.00030684,2]
[325303322,1714686671895,-593.13,0.00030684,2]
[325303323,1714686671905,-500.0,0.00030684,2]
[325303324,1714686671915,-500.0,0.00030684,2]
[325303325,1714686671924,-1105.95,0.00030684,2]
[325303326,1714686671934,-840.06,0.00030684,2]
[325303327,1714686671944,-964.27,0.00030684,2]
[325303328,1714686671954,-1839.82,0.00030684,2]
[325303329,1714686671963,-6770.85,0.00030684,2]
[325303330,1714686671973,-3263.27,0.00030684,2]
[325303331,1714686671984,-669.6,0.00030684,2]
[325303332,1714686671993,-4123.37,0.00030684,2]
[325303333,1714686672004,-4745.78,0.00030684,2]
[325303334,1714686672014,-500.0,0.00030684,2]
[325303335,1714686672024,-1185.64,0.00030684,2]
[325303336,1714686672034,-500.0,0.00030684,2]
[325303337,1714686672044,-1003.58,0.00030684,2]
[325303338,1714686672054,-500.0,0.00030684,2]
[325303339,1714686672067,-500.0,0.00030684,2]
[325303340,1714686672077,-2295.73,0.00030684,2]
[325303341,1714686672087,-500.0,0.00030684,2]
[325303342,1714686672099,-500.0,0.00030684,2]
[325303343,1714686672115,-839.4,0.00030684,2]
[325303344,1714686672125,-500.0,0.00030684,2]
[325303345,1714686672134,-2139.56,0.00030684,2]
[325303346,1714686672144,-2595.03,0.00030684,2]
[325303347,1714686672154,-4543.5,0.00030684,2]
[325303348,1714686672164,-3050.15,0.00030684,2]
[325303349,1714686672179,-500.0,0.00030684,2]
[325303350,1714686672189,-607.8,0.00030684,2]
[325303351,1714686672199,-1623.77,0.00030684,2]
[325303352,1714686672209,-500.0,0.00030684,2]
[325303353,1714686672218,-500.0,0.00030684,2]
[325303354,1714686672228,-157.050306,0.00030698,6]
[325303355,1714686672238,-157.050306,0.00030698,12]
[325303356,1714686672248,-173.050306,0.00030698,10]
[325303357,1714686672258,-500.0,0.0003071,2]
[325303358,1714686672268,-200.0,0.0003071,2]
[325303359,1714686672278,-200.0,0.00030721,2]
[325303360,1714686672288,-1000.0,0.00030721,10]
[325303361,1714686672298,-200.0,0.00030731,2]
[325303362,1714686672308,-1000.0,0.00030731,10]
[325303363,1714686672317,-500.0,0.00030731,2]
[325303364,1714686672327,-200.0,0.00030731,2]
[325303365,1714686672336,-200.0,0.0003074,2]
[325303366,1714686672346,-1000.0,0.0003074,10]
[325303367,1714686672356,-200.0,0.0003075,2]
[325303368,1714686672371,-1000.0,0.0003075,10]
[325303369,1714686672381,-500.0,0.0003075,2]
[325303370,1714686672390,-200.0,0.0003075,2]
[325303371,1714686672400,-274.0,0.0003078,5]
[325303372,1714686672409,-157.050306,0.00030798,12]
[325303373,1714686672418,-157.050306,0.00030798,6]
[325303374,1714686672428,-173.050306,0.00030798,10]
[325303375,1714686672438,-379.99,0.00030809,2]
[325303376,1714686672447,-380.0,0.00030816,2]
[325303377,1714686672457,-380.0,0.00030821,2]
[325303378,1714686672467,-150.0,0.00030822,2]
[325303379,1714686672476,-380.6,0.00030829,2]
[325303380,1714686672486,-380.0,0.0003083,2]
[325303381,1714686672495,-380.0,0.00030835,2]
[325303382,1714686672505,-358.66,0.00030835,2]
[325303383,1714686672515,-380.0,0.0003084,2]
[325303384,1714686672524,-380.0,0.00030842,2]
[325303385,1714686672534,-157.050306,0.00030848,12]
[325303386,1714686672544,-157.050306,0.00030848,10]
[325303387,1714686672553,-164.050306,0.00030848,12]
[325303388,1714686672563,-157.21672278,0.00030889,2]
[325303389,1714686672573,-157.050306,0.00030898,6]
[325303390,1714686672583,-157.050306,0.00030898,10]
[325303391,1714686672593,-173.050306,0.00030898,12]
[325303392,1714686672603,-151.0,0.000309,7]
[325303393,1714686672613,-151.0,0.000309,7]
[325303394,1714686672622,-561.15247917,0.000309,2]
[325303395,1714686672631,-251.04919594,0.000309,2]
[325303396,1714686672642,-150.0,0.000309,2]
[325303397,1714686672651,-260876.65370355,0.000309,2]
[325303398,1714686672660,-174.9665169,0.000309,2]
[325303399,1714686672670,-150.0,0.000309,6]
[325303400,1714686672679,-1230.137654,0.000309,7]
[325303401,1714686672689,-151.0,0.000309,7]
[325303402,1714686672699,-2175.842155,0.000309,7]
[325303403,1714686672709,-1230.137654,0.000309,7]
[325303404,1714686672719,-198.702551,0.000309,7]
[325303405,1714686672728,-2175.842155,0.000309,7]
[325303406,1714686672738,-197.863201,0.000309,7]
[325303407,1714686672748,-151.0,0.000309,7]
[325303408,1714686672758,-7592.8302323,0.000309,2]
[325303409,1714686672769,-197.863201,0.000309,7]
[325303410,1714686672783,-151.0,0.000309,7]
[325303411,1714686672794,-151.0,0.000309,7]
[325303412,1714686672804,-151.0,0.000309,7]
[325303413,1714686672814,-151.0,0.000309,7]
[325303414,1714686672825,-151.0,0.000309,7]
[325303415,1714686672835,-151.0,0.000309,7]
[325303416,1714686672845,-154.7689444,0.00030906,7]
[325303417,1714686672855,-158.94014792,0.00030956,4]
[325303418,1714686672865,-655.55710603,0.00030956,4]
[325303419,1714686672875,-500.0,0.00030957,2]
[325303420,1714686672885,-500.0,0.00030957,2]
[325303421,1714686672896,-500.0,0.00030957,2]
[325303422,1714686672905,-480.71,0.00030957,2]
[325303423,1714686672914,-25428.28088056,0.00030958,3]
[325303424,1714686672924,-4984.61987579,0.00030958,3]
[325303425,1714686672934,-500.0,0.00030958,2]
[325303426,1714686672943,-500.0,0.00030958,2]
[325303427,1714686672953,-616.72,0.00030958,2]
[325303428,1714686672962,-630.6,0.00030958,2]
[325303429,1714686672972,-500.0,0.00030958,2]
[325303430,1714686672981,-500.0,0.00030958,2]
[325303431,1714686672991,-500.0,0.00030958,2]
[325303432,1714686673000,-500.0,0.00030958,2]
[325303433,1714686673009,-500.0,0.00030958,2]
[325303434,1714686673020,-1079.86,0.00030958,2]
[325303435,1714686673030,-629.54,0.00030958,2]
[325303436,1714686673039,-151.0,0.00030958,7]
[325303437,1714686673049,-500.0,0.00030958,2]
[325303438,1714686673060,-500.0,0.00030958,2]
[325303439,1714686673070,-500.0,0.00030958,2]
[325303440,1714686673080,-500.0,0.00030958,3]
[325303441,1714686673090,-500.0,0.00030958,2]
[325303442,1714686673099,-151.0,0.00030958,7]
[325303443,1714686673109,-500.0,0.00030958,2]
[325303444,1714686673118,-500.0,0.00030958,2]
[325303445,1714686673128,-500.0,0.00030958,2]
[325303446,1714686673137,-500.0,0.00030958,2]
[325303447,1714686673147,-151.0,0.00030958,7]
[325303448,1714686673156,-500.0,0.00030958,2]
[325303449,1714686673165,-500.0,0.00030958,2]
[325303450,1714686673175,-500.0,0.00030958,2]
[325303451,1714686673184,-1020.91,0.00030958,2]
[325303452,1714686673193,-500.0,0.00030958,2]
[325303453,1714686673203,-151.0,0.00030958,7]
[325303454,1714686673212,-500.0,0.00030958,2]
[325303455,1714686673222,-151.0,0.00030958,7]
[325303456,1714686673231,-500.0,0.00030958,2]
[325303457,1714686673241,-786.92,0.00030958,2]
[325303458,1714686673250,-764.18,0.00030958,2]
[325303459,1714686673259,-700.09,0.00030958,2]
[325303460,1714686673270,-500.0,0.00030958,2]
[325303461,1714686673280,-255.08,0.00030958,7]
[325303462,1714686673289,-647.0,0.00030958,2]
[325303463,1714686673299,-500.0,0.00030958,2]
[325303464,1714686673308,-500.0,0.00030958,2]
[325303465,1714686673317,-500.0,0.00030958,2]
[325303466,1714686673327,-500.0,0.00030958,2]
[325303467,1714686673337,-500.0,0.00030958,2]
[325303468,1714686673346,-151.0,0.00030958,7]
[325303469,1714686673466,-500.0,0.00030958,2]
[325303470,1714686673476,-500.0,0.00030958,2]
[325303471,1714686673485,-500.0,0.00030958,2]
[325303472,1714686673495,-500.0,0.00030958,2]
[325303473,1714686673504,-500.0,0.00030958,2]
[325303474,1714686673513,-500.0,0.00030958,2]
[325303475,1714686673524,-500.0,0.00030958,2]
[325303476,1714686673534,-500.0,0.00030958,2]
[325303477,1714686673543,-500.0,0.00030958,2]
[325303478,1714686673552,-500.0,0.00030958,2]
[325303479,1714686673561,-684.48,0.00030958,2]
[325303480,1714686673570,-500.0,0.00030958,2]
[325303481,1714686673579,-500.0,0.00030958,2]
[325303482,1714686673588,-500.0,0.00030958,2]
[325303483,1714686673598,-500.0,0.00030958,2]
[325303484,1714686673607,-500.0,0.00030958,2]
[325303485,1714686673616,-500.0,0.00030958,2]
[325303486,1714686673626,-500.0,0.00030958,2]
[325303487,1714686673635,-500.0,0.00030958,2]
[325303488,1714686673644,-500.0,0.00030958,2]
[325303489,1714686673654,-500.0,0.00030958,2]
[325303490,1714686673663,-500.0,0.00030958,2]
[325303491,1714686673672,-500.0,0.00030958,2]
[325303492,1714686673681,-500.0,0.00030958,2]
[325303493,1714686673691,-151.0,0.00030958,7]
[325303494,1714686673700,-500.0,0.00030958,2]
[325303495,1714686673710,-151.0,0.00030958,7]
[325303496,1714686673719,-541.55,0.00030958,2]
[325303497,1714686673728,-826.29,0.00030958,2]
[325303498,1714686673738,-618.89,0.00030958,2]
[325303499,1714686673748,-542.9,0.00030958,2]
[325303500,1714686673757,-151.0,0.00030958,7]
[325303501,1714686673767,-500.0,0.00030958,2]
[325303502,1714686673778,-704.78,0.00030958,2]
[325303503,1714686673787,-942.43,0.00030958,2]
[325303504,1714686673796,-500.0,0.00030958,2]
[325303505,1714686673809,-500.0,0.00030958,2]
[325303506,1714686673821,-776.11,0.00030958,2]
[325303507,1714686673830,-488.02424097,0.00030958,2]
[325303508,1714686673840,-408.26959707,0.00030958,2]
[325303509,1714686673849,-151.0,0.00030958,7]
[325303510,1714686673858,-500.0,0.00030958,2]
[325303511,1714686673868,-500.0,0.00030958,2]
[325303512,1714686673877,-500.0,0.00030958,2]
[325303513,1714686673887,-731.87,0.00030958,2]
[325303514,1714686673897,-508.47165437,0.00030958,2]
[325303515,1714686673906,-1384.97,0.00030958,2]
[325303516,1714686673915,-1215.97,0.00030958,2]
[325303517,1714686673924,-1055.93,0.00030958,2]
[325303518,1714686673934,-500.0,0.00030958,2]
[325303519,1714686673942,-861.26,0.00030958,2]
[325303520,1714686673952,-500.0,0.00030958,2]
[325303521,1714686673961,-1847.22,0.00030958,2]
[325303522,1714686673971,-500.0,0.00030958,2]
[325303523,1714686673980,-500.0,0.00030958,2]
[325303524,1714686673989,-500.0,0.00030958,2]
[325303525,1714686673998,-500.0,0.00030958,2]
[325303526,1714686674008,-500.0,0.00030958,2]
[325303527,1714686674017,-500.0,0.00030958,2]
[325303528,1714686674027,-929.74,0.00030958,2]
[325303529,1714686674037,-724.58,0.00030958,2]
[325303530,1714686674046,-500.0,0.00030958,2]
[325303531,1714686674055,-621.181752,0.00030958,7]
[325303532,1714686674068,-178.41932436,0.00030958,2]
[325303533,1714686674078,-621.181752,0.00030958,7]
[325303534,1714686674087,-500.0,0.00030958,2]
[325303535,1714686674097,-1237.03,0.00030958,2]
[325303536,1714686674106,-500.0,0.00030958,2]
[325303537,1714686674115,-500.0,0.00030958,2]
[325303538,1714686674125,-500.0,0.00030958,2]
[325303539,1714686674134,-590.83,0.00030958,2]
[325303540,1714686674144,-725.05,0.00030958,2]
[325303541,1714686674153,-500.0,0.00030958,2]
[325303542,1714686674162,-882.58,0.00030958,2]
[325303543,1714686674172,-500.0,0.00030958,2]
[325303544,1714686674181,-500.0,0.00030958,2]
[325303545,1714686674190,-500.0,0.00030958,2]
[325303546,1714686674200,-1112.75,0.00030958,2]
[325303547,1714686674209,-1336.38,0.00030958,2]
[325303548,1714686674218,-1118.89,0.00030958,2]
[325303549,1714686674228,-526.82,0.00030958,2]
[325303550,1714686674237,-500.0,0.00030958,2]
[325303551,1714686674247,-757.64,0.00030958,2]
[325303552,1714686674256,-500.0,0.00030958,2]
[325303553,1714686674266,-828.85,0.00030958,2]
[325303554,1714686674275,-1523.89,0.00030958,2]
[325303555,1714686674285,-1630.18,0.00030958,2]
[325303556,1714686674294,-1520.91,0.00030958,2]
[325303557,1714686674304,-1341.05,0.00030958,2]
[325303558,1714686674313,-1156.59,0.00030958,2]
[325303559,1714686674323,-1575.91,0.00030958,2]
[325303560,1714686674332,-1234.29,0.00030958,2]
[325303561,1714686674341,-500.0,0.00030958,2]
[325303562,1714686674351,-500.0,0.00030958,2]
[325303563,1714686674361,-500.0,0.00030958,2]
[325303564,1714686674370,-1379.45,0.00030958,2]
[325303565,1714686674379,-500.0,0.00030958,2]
[325303566,1714686674389,-1081.73,0.00030958,2]
[325303567,1714686674399,-500.0,0.00030958,2]
[325303568,1714686674407,-627.86,0.00030958,2]
[325303569,1714686674417,-1784.93,0.00030958,2]
[325303570,1714686674426,-1787.05,0.00030958,2]
[325303571,1714686674436,-2310.93,0.00030958,2]
[325303572,1714686674445,-803.88,0.00030958,2]
[325303573,1714686674454,-500.0,0.00030958,2]
[325303574,1714686674463,-951.25,0.00030958,2]
[325303575,1714686674473,-629.38,0.00030958,2]
[325303576,1714686674482,-1775.25,0.00030958,2]
[325303577,1714686674491,-500.0,0.00030958,2]
[325303578,1714686674501,-724.87,0.00030958,2]
[325303579,1714686674510,-2651.42,0.00030958,2]
[325303580,1714686674520,-500.0,0.00030958,2]
[325303581,1714686674529,-500.0,0.00030958,2]
[325303582,1714686674538,-500.0,0.00030958,2]
[325303583,1714686674548,-1141.57,0.00030958,2]
[325303584,1714686674558,-915.13,0.00030958,2]
[325303585,1714686674567,-500.0,0.00030958,2]
[325303586,1714686674576,-1708.98,0.00030958,2]
[325303587,1714686674586,-500.0,0.00030958,2]
[325303588,1714686674595,-768.81,0.00030958,2]
[325303589,1714686674604,-574.88,0.00030958,2]
[325303590,1714686674613,-500.0,0.00030958,2]
[325303591,1714686674622,-1450.02,0.00030958,2]
[325303592,1714686674632,-500.0,0.00030958,2]
[325303593,1714686674641,-500.0,0.00030958,2]
[325303594,1714686674650,-2149.48,0.00030958,2]
[325303595,1714686674660,-625.82,0.00030958,2]
[325303596,1714686674669,-1377.62,0.00030958,2]
[325303597,1714686674678,-808.92,0.00030958,2]
[325303598,1714686674687,-800.27,0.00030958,2]
[325303599,1714686674697,-1189.64,0.00030958,2]
[325303600,1714686674707,-2032.19,0.00030958,2]
[325303601,1714686674716,-1162.28,0.00030958,2]
[325303602,1714686674726,-500.0,0.00030958,2]
[325303603,1714686674735,-900.6,0.00030958,2]
[325303604,1714686674744,-947.18,0.00030958,2]
[325303605,1714686674753,-869.74,0.00030958,2]
[325303606,1714686674763,-500.0,0.00030958,2]
[325303607,1714686674776,-814.78,0.00030958,2]
[325303608,1714686674790,-500.0,0.00030958,2]
[325303609,1714686674800,-687.46,0.00030958,2]
[325303610,1714686674810,-2264.77,0.00030958,2]
[325303611,1714686674821,-500.0,0.00030958,2]
[325303612,1714686674832,-1199.66,0.00030958,2]
[325303613,1714686674842,-1330.34,0.00030958,2]
[325303614,1714686674852,-550.0,0.00030958,7]
[325303615,1714686674861,-669.49,0.00030958,2]
[325303616,1714686674871,-1543.7,0.00030958,2]
[325303617,1714686674882,-1058.86,0.00030958,2]
[325303618,1714686674892,-602.7,0.00030958,2]
[325303619,1714686674903,-550.0,0.00030958,7]
[325303620,1714686674913,-1217.79,0.00030958,2]
[325303621,1714686674923,-500.0,0.00030958,2]
[325303622,1714686674939,-1365.42,0.00030958,2]
[325303623,1714686674953,-151.0,0.00030958,7]
[325303624,1714686674974,-500.0,0.00030958,2]
[325303625,1714686674993,-2315.09,0.00030958,2]
[325303626,1714686675006,-500.0,0.00030958,2]
[325303627,1714686675032,-635.5206273,0.00030958,2]
[325303628,1714686675044,-151.0,0.00030958,7]
[325303629,1714686675053,-789.24,0.00030958,2]
[325303630,1714686675063,-1237.54,0.00030958,2]
[325303631,1714686675072,-500.0,0.00030958,2]
[325303632,1714686675090,-1341.99,0.00030958,2]
[325303633,1714686675100,-1077.83,0.00030958,2]
[325303634,1714686675109,-1079.08,0.00030958,2]
[325303635,1714686675118,-500.0,0.00030958,2]
[325303636,1714686675128,-500.0,0.00030958,2]
[325303637,1714686675136,-539.77,0.00030958,2]
[325303638,1714686675146,-1453.69,0.00030958,2]
[325303639,1714686675158,-500.0,0.00030958,2]
[325303640,1714686675167,-500.0,0.00030958,2]
[325303641,1714686675176,-1558.22,0.00030958,2]
[325303642,1714686675186,-173.179925,0.00030958,7]
[325303643,1714686675195,-1080.4,0.00030958,2]
[325303644,1714686675205,-500.0,0.00030958,2]
[325303645,1714686675214,-500.0,0.00030958,2]
[325303646,1714686675224,-173.179925,0.00030958,7]
[325303647,1714686675233,-500.0,0.00030958,2]
[325303648,1714686675242,-500.0,0.00030958,2]
[325303649,1714686675251,-500.0,0.00030958,2]
[325303650,1714686675261,-992.99,0.00030958,2]
[325303651,1714686675271,-500.0,0.00030958,2]
[325303652,1714686675280,-500.0,0.00030958,2]
[325303653,1714686675290,-151.0,0.00030958,7]
[325303654,1714686675299,-500.0,0.00030958,2]
[325303655,1714686675309,-1851.96,0.00030958,2]
[325303656,1714686675319,-500.0,0.00030958,2]
[325303657,1714686675329,-500.0,0.00030958,2]
[325303658,1714686675338,-864.81,0.00030958,2]
[325303659,1714686675347,-500.0,0.00030958,2]
[325303660,1714686675357,-1006.44,0.00030958,2]
[325303661,1714686675366,-500.0,0.00030958,2]
[325303662,1714686675375,-163.774276,0.00030958,7]
[325303663,1714686675384,-500.0,0.00030958,2]
[325303664,1714686675393,-1062.68,0.00030958,2]
[325303665,1714686675402,-657.12,0.00030958,2]
[325303666,1714686675411,-781.89,0.00030958,2]
[325303667,1714686675421,-163.774276,0.00030958,7]
[325303668,1714686675430,-1374.32,0.00030958,2]
[325303669,1714686675439,-1135.77,0.00030958,2]
[325303670,1714686675448,-744.61,0.00030958,2]
[325303671,1714686675457,-933.59,0.00030958,2]
[325303672,1714686675466,-896.08,0.00030958,2]
[325303673,1714686675475,-2273.23,0.00030958,2]
[325303674,1714686675484,-559.35,0.00030958,2]
[325303675,1714686675494,-2267.57,0.00030958,2]
[325303676,1714686675503,-1070.0,0.00030958,2]
[325303677,1714686675512,-500.0,0.00030958,2]
[325303678,1714686675523,-859.36,0.00030958,2]
[325303679,1714686675535,-500.0,0.00030958,2]
[325303680,1714686675543,-647.12,0.00030958,2]
[325303681,1714686675553,-500.0,0.00030958,2]
[325303682,1714686675562,-862.54,0.00030958,2]
[325303683,1714686675582,-810.54,0.00030958,2]
[325303684,1714686675591,-1136.95,0.00030958,2]
[325303685,1714686675604,-2039.77,0.00030958,2]
[325303686,1714686675614,-500.0,0.00030958,2]
[325303687,1714686675624,-500.0,0.00030958,2]
[325303688,1714686675633,-500.0,0.00030958,2]
[325303689,1714686675643,-242.17728,0.00030958,7]
[325303690,1714686675652,-500.0,0.00030958,2]
[325303691,1714686675662,-500.0,0.00030958,2]
[325303692,1714686675672,-1286.93,0.00030958,2]
[325303693,1714686675681,-857.57,0.00030958,2]
[325303694,1714686675691,-500.0,0.00030958,2]
[325303695,1714686675700,-565.96,0.00030958,2]
[325303696,1714686675710,-1203.69,0.00030958,2]
[325303697,1714686675720,-612.04,0.00030958,2]
[325303698,1714686675729,-500.0,0.00030958,2]
[325303699,1714686675739,-1636.54,0.00030958,2]
[325303700,1714686675748,-1084.39,0.00030958,2]
[325303701,1714686675758,-1293.33,0.00030958,2]
[325303702,1714686675769,-978.77,0.00030958,2]
[325303703,1714686675780,-719.47,0.00030958,2]
[325303704,1714686675790,-996.06,0.00030958,2]
[325303705,1714686675802,-807.45,0.00030958,2]
[325303706,1714686675813,-500.0,0.00030958,2]
[325303707,1714686675824,-1167.84,0.00030958,2]
[325303708,1714686675834,-1052.5,0.00030958,2]
[325303709,1714686675844,-678.17,0.00030958,2]
[325303710,1714686675854,-500.0,0.00030958,2]
[325303711,1714686675864,-500.0,0.00030958,2]
[325303712,1714686675874,-716.58,0.00030958,2]
[325303713,1714686675884,-1707.55,0.00030958,2]
[325303714,1714686675895,-827.94,0.00030958,2]
[325303715,1714686675904,-1060.89,0.00030958,2]
[325303716,1714686675914,-1070.32,0.00030958,2]
[325303717,1714686675924,-2324.94,0.00030958,2]
[325303718,1714686675934,-500.0,0.00030958,2]
[325303719,1714686675944,-1370.43,0.00030958,2]
[325303720,1714686675953,-1062.63,0.00030958,2]
[325303721,1714686675963,-613.91,0.00030958,2]
[325303722,1714686675974,-500.0,0.00030958,2]
[325303723,1714686675983,-1609.03,0.00030958,2]
[325303724,1714686675993,-1035.399801,0.00030958,7]
[325303725,1714686676003,-3067.2,0.00030958,2]
[325303726,1714686676012,-500.0,0.00030958,2]
[325303727,1714686676023,-941.35,0.00030958,2]
[325303728,1714686676033,-1369.72,0.00030958,2]
[325303729,1714686676043,-500.0,0.00030958,2]
[325303730,1714686676053,-500.0,0.00030958,2]
[325303731,1714686676064,-500.0,0.00030958,2]
[325303732,1714686676074,-2549.22,0.00030958,2]
[325303733,1714686676083,-1035.399801,0.00030958,7]
[325303734,1714686676092,-1593.06,0.00030958,2]
[325303735,1714686676102,-500.0,0.00030958,2]
[325303736,1714686676111,-151.0,0.00030958,7]
[325303737,1714686676121,-500.0,0.00030958,2]
[325303738,1714686676130,-151.0,0.00030958,7]
[325303739,1714686676140,-1276.59,0.00030958,2]
[325303740,1714686676150,-672.98,0.00030958,2]
[325303741,1714686676160,-575.89,0.00030958,2]
[325303742,1714686676169,-169.910347,0.00030958,7]
[325303743,1714686676179,-151.0,0.00030958,7]
[325303744,1714686676189,-500.0,0.00030958,2]
[325303745,1714686676198,-169.910347,0.00030958,7]
[325303746,1714686676207,-532.54,0.00030958,2]
[325303747,1714686676217,-1415.22,0.00030958,2]
[325303748,1714686676227,-544.16,0.00030958,2]
[325303749,1714686676236,-3028.77,0.00030958,2]
[325303750,1714686676246,-500.0,0.00030958,2]
[325303751,1714686676255,-523.28,0.00030958,2]
[325303752,1714686676265,-500.0,0.00030958,2]
[325303753,1714686676276,-500.0,0.00030958,2]